[Event "Titled Tuesday Blitz August 15 Early 2023"]
[White "Putnam, Liam"]
[Black "Sreyas Payyappat"]
[WhiteFideId "30938279"]
[BlackFideId "46674969"]
[WhiteElo "2813"]
[BlackElo "2552"]
[Result "1-0"]
[Round "4"]
[TimeControl "180+1"]
[Date "2023.08.15"]
[WhiteClock "0:00:18"]
[BlackClock "0:00:12"]
[Board "54"]

1. d4 {[%clk 0:03:00]}  Nf6 {[%clk 0:02:47]} 2. c4 {[%clk 0:02:51]}  c5 {[%clk 0:02:45]} 3. d5 {[%clk 0:02:48]}  e6 {[%clk 0:02:45]} 4. Nc3 {[%clk 0:02:48]}  exd5 {[%clk 0:02:46]} 5. cxd5 {[%clk 0:02:49]}  d6 {[%clk 0:02:42]} 6. e4 {[%clk 0:02:46]}  g6 {[%clk 0:02:43]} 7. h3 {[%clk 0:02:46]}  Bg7 {[%clk 0:02:44]} 8. Bd3 {[%clk 0:02:47]}  O-O {[%clk 0:02:44]} 9. Nf3 {[%clk 0:02:47]}  b5 {[%clk 0:02:40]} 10. Nxb5 {[%clk 0:02:31]}  Nxe4 {[%clk 0:02:36]} 11. O-O {[%clk 0:02:13]}  Re8 {[%clk 0:02:31]} 12. Re1 {[%clk 0:02:12]}  Nf6 {[%clk 0:02:27]} 13. Bf4 {[%clk 0:01:46]}  Rxe1+ {[%clk 0:02:15]} 14. Qxe1 {[%clk 0:01:47]}  Ne8 {[%clk 0:02:15]} 15. Qe2 {[%clk 0:01:33]}  Ba6 {[%clk 0:01:32]} 16. Nxd6 {[%clk 0:01:15]}  Nxd6 {[%clk 0:01:29]} 17. Bxa6 {[%clk 0:01:15]}  Nxa6 {[%clk 0:01:07]} 18. Qxa6 {[%clk 0:01:16]}  Nf5 {[%clk 0:01:04]} 19. Rd1 {[%clk 0:00:58]}  Bxb2 {[%clk 0:00:52]} 20. d6 {[%clk 0:00:39]}  Nd4 {[%clk 0:00:24]} 21. Nxd4 {[%clk 0:00:26]}  Bxd4 {[%clk 0:00:19]} 22. Qb7 {[%clk 0:00:26]}  Rb8 {[%clk 0:00:11]} 23. Qc7 {[%clk 0:00:18]}  Rc8 {[%clk 0:00:03]} 24. Qxa7 {[%clk 0:00:16]}  Qf6 {[%clk 0:00:02]} 25. Bg3 {[%clk 0:00:13]}  Rd8 {[%clk 0:00:01]} 26. Qc7 {[%clk 0:00:12]}  Kg7 {[%clk 0:00:01]} 27. a4 {[%clk 0:00:12]}  c4 {[%clk 0:00:01]} 28. Qxc4 {[%clk 0:00:12]}  Rxd6 {[%clk 0:00:02]} 29. Bxd6 {[%clk 0:00:09]}  Qxf2+ {[%clk 0:00:02]} 30. Kh1 {[%clk 0:00:10]}  Be3 {[%clk 0:00:02]} 31. Be5+ {[%clk 0:00:10]}  Kh6 {[%clk 0:00:02]} 32. Qf1 {[%clk 0:00:08]}  Qc2 {[%clk 0:00:01]} 33. Bf4+ {[%clk 0:00:07]}  Bxf4 {[%clk 0:00:02]} 34. Qxf4+ {[%clk 0:00:07]}  Kg7 {[%clk 0:00:03]} 35. Qd4+ {[%clk 0:00:08]}  f6 {[%clk 0:00:03]} 36. a5 {[%clk 0:00:09]}  Kh6 {[%clk 0:00:04]} 37. a6 {[%clk 0:00:09]}  Qa2 {[%clk 0:00:04]} 38. a7 {[%clk 0:00:10]}  Qa6 {[%clk 0:00:04]} 39. Qf4+ {[%clk 0:00:10]}  g5 {[%clk 0:00:04]} 40. Qd6 {[%clk 0:00:11]}  Qe2 {[%clk 0:00:05]} 41. Qxf6+ {[%clk 0:00:11]}  Kh5 {[%clk 0:00:05]} 42. Qf3+ {[%clk 0:00:10]}  Qxf3 {[%clk 0:00:05]} 43. gxf3 {[%clk 0:00:11]}  Kh4 {[%clk 0:00:05]} 44. a8=Q {[%clk 0:00:11]}  h5 {[%clk 0:00:06]} 45. Qe4+ {[%clk 0:00:12]}  Kxh3 {[%clk 0:00:07]} 46. Qf5+ {[%clk 0:00:12]}  Kh4 {[%clk 0:00:07]} 47. Rd4+ {[%clk 0:00:13]}  Kg3 {[%clk 0:00:07]} 48. Qxg5+ {[%clk 0:00:13]}  Kxf3 {[%clk 0:00:08]} 49. Rf4+ {[%clk 0:00:14]}  Ke3 {[%clk 0:00:09]} 50. Qe5+ {[%clk 0:00:14]}  Kd3 {[%clk 0:00:09]} 51. Rd4+ {[%clk 0:00:15]}  Kc3 {[%clk 0:00:10]} 52. Qc5+ {[%clk 0:00:16]}  Kb3 {[%clk 0:00:11]} 53. Rb4+ {[%clk 0:00:17]}  Ka3 {[%clk 0:00:12]} 54. Qa5# {[%clk 0:00:18]} 1-0


[Site "https://www.chess.com"]

[Event "Titled Tuesday Blitz August 15 Early 2023"]
[White "Mogirzan, Matei-Valeriu"]
[Black "Rustemov, Alexander"]
[WhiteFideId "1257455"]
[BlackFideId "4119002"]
[WhiteElo "2545"]
[BlackElo "2773"]
[Result "0-1"]
[Round "4"]
[TimeControl "180+1"]
[Date "2023.08.15"]
[WhiteClock "0:00:00"]
[BlackClock "0:00:46"]
[Board "56"]

1. e4 {[%clk 0:03:00]}  e6 {[%clk 0:03:00]} 2. d4 {[%clk 0:02:58]}  d5 {[%clk 0:03:00]} 3. Nd2 {[%clk 0:02:59]}  dxe4 {[%clk 0:03:01]} 4. Nxe4 {[%clk 0:03:00]}  Bd7 {[%clk 0:03:01]} 5. Nf3 {[%clk 0:02:59]}  Bc6 {[%clk 0:03:02]} 6. Neg5 {[%clk 0:02:59]}  Nd7 {[%clk 0:03:02]} 7. Bd3 {[%clk 0:02:56]}  Ngf6 {[%clk 0:03:01]} 8. Qe2 {[%clk 0:02:49]}  Qe7 {[%clk 0:03:00]} 9. c4 {[%clk 0:02:41]}  h6 {[%clk 0:02:58]} 10. Ne4 {[%clk 0:02:22]}  Nxe4 {[%clk 0:02:57]} 11. Bxe4 {[%clk 0:02:23]}  Bxe4 {[%clk 0:02:57]} 12. Qxe4 {[%clk 0:02:24]}  O-O-O {[%clk 0:02:51]} 13. O-O {[%clk 0:02:16]}  g5 {[%clk 0:02:51]} 14. c5 {[%clk 0:02:06]}  c6 {[%clk 0:02:46]} 15. b4 {[%clk 0:02:01]}  Bg7 {[%clk 0:02:36]} 16. Rb1 {[%clk 0:01:36]}  f5 {[%clk 0:02:34]} 17. Qe2 {[%clk 0:01:19]}  g4 {[%clk 0:02:31]} 18. b5 {[%clk 0:00:52]}  gxf3 {[%clk 0:02:25]} 19. Qxf3 {[%clk 0:00:52]}  cxb5 {[%clk 0:02:05]} 20. Rxb5 {[%clk 0:00:44]}  Nb8 {[%clk 0:01:59]} 21. Bf4 {[%clk 0:00:34]}  Nc6 {[%clk 0:01:58]} 22. Rfb1 {[%clk 0:00:23]}  Nxd4 {[%clk 0:01:36]} 23. Qxb7+ {[%clk 0:00:03]}  Qxb7 {[%clk 0:01:36]} 24. Rxb7 {[%clk 0:00:04]}  Ne2+ {[%clk 0:01:34]} 25. Kh1 {[%clk 0:00:04]}  Nxf4 {[%clk 0:01:34]} 26. Rxg7 {[%clk 0:00:02]}  Rd7 {[%clk 0:01:32]} 27. Rg3 {[%clk 0:00:02]}  Kc7 {[%clk 0:01:26]} 28. Rgb3 {[%clk 0:00:02]}  Kc6 {[%clk 0:01:26]} 29. g3 {[%clk 0:00:02]}  Nd5 {[%clk 0:01:25]} 30. Ra3 {[%clk 0:00:02]}  Kxc5 {[%clk 0:01:21]} 31. Ra6 {[%clk 0:00:02]}  Re8 {[%clk 0:01:12]} 32. Rc1+ {[%clk 0:00:02]}  Kd4 {[%clk 0:01:11]} 33. f4 {[%clk 0:00:02]}  Rb7 {[%clk 0:01:04]} 34. Rd1+ {[%clk 0:00:02]}  Ke3 {[%clk 0:01:00]} 35. Ra3+ {[%clk 0:00:01]}  Ke2 {[%clk 0:00:59]} 36. Rad3 {[%clk 0:00:02]}  Rb2 {[%clk 0:00:55]} 37. g4 {[%clk 0:00:01]}  Ne3 {[%clk 0:00:47]} 38. R1d2+ {[%clk 0:00:00]}  Rxd2 {[%clk 0:00:46]} 0-1


[Site "https://www.chess.com"]

[Event "Titled Tuesday Blitz August 15 Early 2023"]
[White "Lobanov, Sergei"]
[Black "Perdomo, Carlos Andres"]
[WhiteFideId "24183750"]
[BlackFideId "4400852"]
[WhiteElo "2750"]
[BlackElo "2543"]
[Result "0-1"]
[Round "4"]
[TimeControl "180+1"]
[Date "2023.08.15"]
[WhiteClock "0:00:00"]
[BlackClock "0:00:17"]
[Board "60"]

1. d4 {[%clk 0:02:59]}  d5 {[%clk 0:03:00]} 2. c4 {[%clk 0:02:59]}  c6 {[%clk 0:03:00]} 3. Nf3 {[%clk 0:03:00]}  Nf6 {[%clk 0:03:00]} 4. e3 {[%clk 0:03:00]}  e6 {[%clk 0:03:00]} 5. b3 {[%clk 0:02:58]}  Nbd7 {[%clk 0:03:00]} 6. Bb2 {[%clk 0:02:57]}  Bd6 {[%clk 0:03:00]} 7. Bd3 {[%clk 0:02:58]}  Qe7 {[%clk 0:02:59]} 8. Nc3 {[%clk 0:02:51]}  dxc4 {[%clk 0:02:57]} 9. Bxc4 {[%clk 0:02:49]}  e5 {[%clk 0:02:58]} 10. d5 {[%clk 0:02:40]}  Nb6 {[%clk 0:02:48]} 11. dxc6 {[%clk 0:02:37]}  bxc6 {[%clk 0:02:46]} 12. Be2 {[%clk 0:02:34]}  O-O {[%clk 0:02:32]} 13. Qc2 {[%clk 0:02:34]}  a5 {[%clk 0:02:24]} 14. Ng5 {[%clk 0:02:03]}  a4 {[%clk 0:02:05]} 15. bxa4 {[%clk 0:01:59]}  h6 {[%clk 0:01:58]} 16. h4 {[%clk 0:01:59]}  Bb4 {[%clk 0:01:45]} 17. Kf1 {[%clk 0:01:58]}  Bxc3 {[%clk 0:01:22]} 18. Bxc3 {[%clk 0:01:57]}  Nxa4 {[%clk 0:01:07]} 19. Be1 {[%clk 0:01:56]}  Qc5 {[%clk 0:00:58]} 20. Qxc5 {[%clk 0:01:16]}  Nxc5 {[%clk 0:00:59]} 21. Nf3 {[%clk 0:01:15]}  Re8 {[%clk 0:00:54]} 22. Bc3 {[%clk 0:01:09]}  Bg4 {[%clk 0:00:43]} 23. Nxe5 {[%clk 0:01:00]}  Bxe2+ {[%clk 0:00:41]} 24. Kxe2 {[%clk 0:01:01]}  Na4 {[%clk 0:00:39]} 25. Rhc1 {[%clk 0:00:45]}  Nxc3+ {[%clk 0:00:39]} 26. Rxc3 {[%clk 0:00:46]}  Rxe5 {[%clk 0:00:39]} 27. Rxc6 {[%clk 0:00:46]}  Rea5 {[%clk 0:00:40]} 28. Rc2 {[%clk 0:00:46]}  Nd5 {[%clk 0:00:39]} 29. Kf3 {[%clk 0:00:39]}  Ra4 {[%clk 0:00:36]} 30. g3 {[%clk 0:00:39]}  Nb4 {[%clk 0:00:32]} 31. Rc7 {[%clk 0:00:25]}  Rxa2 {[%clk 0:00:32]} 32. Rd1 {[%clk 0:00:25]}  R2a7 {[%clk 0:00:31]} 33. Rc4 {[%clk 0:00:24]}  Rb7 {[%clk 0:00:29]} 34. Rb1 {[%clk 0:00:20]}  Rab8 {[%clk 0:00:29]} 35. Rd1 {[%clk 0:00:21]}  Rb6 {[%clk 0:00:24]} 36. h5 {[%clk 0:00:18]}  Rf6+ {[%clk 0:00:24]} 37. Kg2 {[%clk 0:00:18]}  Nc6 {[%clk 0:00:25]} 38. f4 {[%clk 0:00:09]}  Re6 {[%clk 0:00:22]} 39. Rd3 {[%clk 0:00:07]}  Rbe8 {[%clk 0:00:22]} 40. Kf3 {[%clk 0:00:08]}  Ne7 {[%clk 0:00:21]} 41. e4 {[%clk 0:00:08]}  Rc6 {[%clk 0:00:20]} 42. Rcd4 {[%clk 0:00:07]}  Rec8 {[%clk 0:00:20]} 43. e5 {[%clk 0:00:07]}  Nf5 {[%clk 0:00:19]} 44. Rd8+ {[%clk 0:00:07]}  Rxd8 {[%clk 0:00:19]} 45. Rxd8+ {[%clk 0:00:08]}  Kh7 {[%clk 0:00:20]} 46. Kg4 {[%clk 0:00:07]}  Ne3+ {[%clk 0:00:19]} 47. Kf3 {[%clk 0:00:07]}  Rc3 {[%clk 0:00:19]} 48. Ke4 {[%clk 0:00:04]}  Nf1 {[%clk 0:00:20]} 49. g4 {[%clk 0:00:04]}  Ng3+ {[%clk 0:00:20]} 50. Kd4 {[%clk 0:00:03]}  Rf3 {[%clk 0:00:21]} 51. f5 {[%clk 0:00:02]}  Rf4+ {[%clk 0:00:21]} 52. Kd5 {[%clk 0:00:03]}  Rxg4 {[%clk 0:00:21]} 53. e6 {[%clk 0:00:03]}  Nxf5 {[%clk 0:00:15]} 54. exf7 {[%clk 0:00:03]}  Rd4+ {[%clk 0:00:16]} 55. Ke5 {[%clk 0:00:03]}  Rxd8 {[%clk 0:00:17]} 56. Kxf5 {[%clk 0:00:03]}  Rf8 {[%clk 0:00:16]} 57. Ke6 {[%clk 0:00:00]}  g5 {[%clk 0:00:17]} 0-1


[Site "https://www.chess.com"]

[Event "Titled Tuesday Blitz August 15 Early 2023"]
[White "Kosteniuk, Alexandra"]
[Black "Jaskolka, Tomasz"]
[WhiteFideId "4128125"]
[BlackFideId "1170791"]
[WhiteElo "2743"]
[BlackElo "2540"]
[Result "1/2-1/2"]
[Round "4"]
[TimeControl "180+1"]
[Date "2023.08.15"]
[WhiteClock "0:00:16"]
[BlackClock "0:00:04"]
[Board "62"]

1. e4 {[%clk 0:03:00]}  d5 {[%clk 0:02:59]} 2. exd5 {[%clk 0:03:00]}  Nf6 {[%clk 0:02:59]} 3. Nc3 {[%clk 0:02:58]}  Nxd5 {[%clk 0:02:59]} 4. Nxd5 {[%clk 0:02:55]}  Qxd5 {[%clk 0:02:59]} 5. Nf3 {[%clk 0:02:55]}  Nc6 {[%clk 0:03:00]} 6. Be2 {[%clk 0:02:54]}  Bf5 {[%clk 0:02:57]} 7. d3 {[%clk 0:02:54]}  e6 {[%clk 0:02:57]} 8. O-O {[%clk 0:02:54]}  Be7 {[%clk 0:02:55]} 9. a3 {[%clk 0:02:53]}  O-O {[%clk 0:02:55]} 10. b4 {[%clk 0:02:53]}  Bf6 {[%clk 0:02:55]} 11. Rb1 {[%clk 0:02:50]}  Rfd8 {[%clk 0:02:41]} 12. Bb2 {[%clk 0:02:50]}  Bxb2 {[%clk 0:02:36]} 13. Rxb2 {[%clk 0:02:50]}  Nd4 {[%clk 0:02:36]} 14. Nxd4 {[%clk 0:02:48]}  Qxd4 {[%clk 0:02:37]} 15. Rb3 {[%clk 0:02:46]}  e5 {[%clk 0:02:30]} 16. Bf3 {[%clk 0:02:41]}  c6 {[%clk 0:02:29]} 17. Qa1 {[%clk 0:02:32]}  a6 {[%clk 0:02:15]} 18. a4 {[%clk 0:02:17]}  Be6 {[%clk 0:02:12]} 19. Rbb1 {[%clk 0:02:10]}  Qxa1 {[%clk 0:02:05]} 20. Rxa1 {[%clk 0:02:10]}  Bd5 {[%clk 0:02:06]} 21. Bxd5 {[%clk 0:02:03]}  Rxd5 {[%clk 0:02:00]} 22. Rfe1 {[%clk 0:02:03]}  f6 {[%clk 0:01:59]} 23. Re4 {[%clk 0:02:00]}  Rad8 {[%clk 0:01:57]} 24. f3 {[%clk 0:01:59]}  Kf7 {[%clk 0:01:57]} 25. Kf2 {[%clk 0:01:59]}  Ke6 {[%clk 0:01:56]} 26. Rb1 {[%clk 0:01:58]}  Rd4 {[%clk 0:01:55]} 27. Ke3 {[%clk 0:01:42]}  f5 {[%clk 0:01:53]} 28. Rxd4 {[%clk 0:01:42]}  Rxd4 {[%clk 0:01:54]} 29. c3 {[%clk 0:01:41]}  Rd5 {[%clk 0:01:35]} 30. h4 {[%clk 0:01:35]}  g6 {[%clk 0:01:34]} 31. g3 {[%clk 0:01:30]}  h6 {[%clk 0:01:33]} 32. f4 {[%clk 0:01:29]}  exf4+ {[%clk 0:01:31]} 33. gxf4 {[%clk 0:01:30]}  Kf6 {[%clk 0:01:29]} 34. d4 {[%clk 0:01:30]}  Rd7 {[%clk 0:01:27]} 35. b5 {[%clk 0:01:30]}  cxb5 {[%clk 0:01:25]} 36. axb5 {[%clk 0:01:30]}  Re7+ {[%clk 0:01:22]} 37. Kf3 {[%clk 0:01:26]}  Rc7 {[%clk 0:01:21]} 38. Rb3 {[%clk 0:01:06]}  axb5 {[%clk 0:01:20]} 39. Ke3 {[%clk 0:01:06]}  Re7+ {[%clk 0:01:18]} 40. Kd3 {[%clk 0:01:05]}  Re4 {[%clk 0:01:18]} 41. Rxb5 {[%clk 0:01:05]}  Rxf4 {[%clk 0:01:18]} 42. Rb6+ {[%clk 0:01:06]}  Kf7 {[%clk 0:01:15]} 43. Rxb7+ {[%clk 0:01:07]}  Kf6 {[%clk 0:01:15]} 44. Rb6+ {[%clk 0:01:00]}  Kf7 {[%clk 0:01:15]} 45. c4 {[%clk 0:00:59]}  Rxh4 {[%clk 0:01:14]} 46. c5 {[%clk 0:00:59]}  Rh3+ {[%clk 0:01:09]} 47. Kc4 {[%clk 0:00:59]}  Rh1 {[%clk 0:01:10]} 48. Kd5 {[%clk 0:00:54]}  g5 {[%clk 0:01:05]} 49. c6 {[%clk 0:00:52]}  Rc1 {[%clk 0:01:03]} 50. Ke5 {[%clk 0:00:45]}  f4 {[%clk 0:01:01]} 51. d5 {[%clk 0:00:41]}  f3 {[%clk 0:00:49]} 52. Rb2 {[%clk 0:00:41]}  g4 {[%clk 0:00:38]} 53. d6 {[%clk 0:00:36]}  Rxc6 {[%clk 0:00:32]} 54. Rb7+ {[%clk 0:00:30]}  Ke8 {[%clk 0:00:16]} 55. Ke6 {[%clk 0:00:28]}  Rxd6+ {[%clk 0:00:13]} 56. Kxd6 {[%clk 0:00:29]}  g3 {[%clk 0:00:12]} 57. Rb3 {[%clk 0:00:23]}  f2 {[%clk 0:00:10]} 58. Re3+ {[%clk 0:00:22]}  Kf7 {[%clk 0:00:06]} 59. Rf3+ {[%clk 0:00:22]}  Ke8 {[%clk 0:00:06]} 60. Re3+ {[%clk 0:00:22]}  Kf7 {[%clk 0:00:04]} 61. Rf3+ {[%clk 0:00:23]}  Ke8 {[%clk 0:00:04]} 62. Re3+ {[%clk 0:00:16]} 1/2-1/2


[Site "https://www.chess.com"]

[Event "Titled Tuesday Blitz August 15 Early 2023"]
[White "Stribuk, Artiom"]
[Black "Gontcharov, Vladislav"]
[WhiteFideId "13515659"]
[BlackFideId "4123492"]
[WhiteElo "2741"]
[BlackElo "2539"]
[Result "1-0"]
[Round "4"]
[TimeControl "180+1"]
[Date "2023.08.15"]
[WhiteClock "0:00:09"]
[BlackClock "0:00:00"]
[Board "63"]

1. c4 {[%clk 0:03:00]}  Nf6 {[%clk 0:02:55]} 2. Nc3 {[%clk 0:02:58]}  c5 {[%clk 0:02:53]} 3. e3 {[%clk 0:02:55]}  g6 {[%clk 0:02:50]} 4. d4 {[%clk 0:02:55]}  Bg7 {[%clk 0:02:47]} 5. Nf3 {[%clk 0:02:54]}  cxd4 {[%clk 0:02:45]} 6. exd4 {[%clk 0:02:43]}  d5 {[%clk 0:02:45]} 7. cxd5 {[%clk 0:02:33]}  Nxd5 {[%clk 0:02:38]} 8. Bc4 {[%clk 0:02:33]}  Nxc3 {[%clk 0:02:35]} 9. bxc3 {[%clk 0:02:21]}  O-O {[%clk 0:02:34]} 10. O-O {[%clk 0:02:22]}  Nc6 {[%clk 0:02:26]} 11. Re1 {[%clk 0:02:20]}  Na5 {[%clk 0:02:26]} 12. Bd3 {[%clk 0:02:12]}  Be6 {[%clk 0:02:23]} 13. Ng5 {[%clk 0:01:36]}  Bd5 {[%clk 0:02:03]} 14. Qg4 {[%clk 0:01:35]}  e6 {[%clk 0:01:53]} 15. Qh3 {[%clk 0:01:09]}  h6 {[%clk 0:01:45]} 16. Ne4 {[%clk 0:01:09]}  f5 {[%clk 0:01:26]} 17. Nc5 {[%clk 0:01:08]}  Kf7 {[%clk 0:01:17]} 18. Bf4 {[%clk 0:00:29]}  b6 {[%clk 0:01:12]} 19. Na6 {[%clk 0:00:30]}  Rc8 {[%clk 0:00:59]} 20. Rac1 {[%clk 0:00:29]}  Nc4 {[%clk 0:00:51]} 21. Nb4 {[%clk 0:00:28]}  Qd7 {[%clk 0:00:50]} 22. Be5 {[%clk 0:00:27]}  a5 {[%clk 0:00:44]} 23. Nxd5 {[%clk 0:00:24]}  Qxd5 {[%clk 0:00:43]} 24. Bxg7 {[%clk 0:00:23]}  Kxg7 {[%clk 0:00:43]} 25. Re2 {[%clk 0:00:22]}  Rfe8 {[%clk 0:00:40]} 26. Rce1 {[%clk 0:00:20]}  Nd6 {[%clk 0:00:39]} 27. Bb1 {[%clk 0:00:15]}  Nf7 {[%clk 0:00:37]} 28. Qd3 {[%clk 0:00:13]}  b5 {[%clk 0:00:34]} 29. h3 {[%clk 0:00:11]}  Rc4 {[%clk 0:00:33]} 30. a3 {[%clk 0:00:11]}  b4 {[%clk 0:00:31]} 31. axb4 {[%clk 0:00:10]}  axb4 {[%clk 0:00:31]} 32. Ba2 {[%clk 0:00:09]}  Nd6 {[%clk 0:00:26]} 33. Bxc4 {[%clk 0:00:09]}  Nxc4 {[%clk 0:00:27]} 34. cxb4 {[%clk 0:00:10]}  Nd6 {[%clk 0:00:24]} 35. Re5 {[%clk 0:00:09]}  Qa2 {[%clk 0:00:23]} 36. d5 {[%clk 0:00:10]}  Ne4 {[%clk 0:00:23]} 37. Qd4 {[%clk 0:00:08]}  Kf7 {[%clk 0:00:06]} 38. Rxe6 {[%clk 0:00:08]}  Rxe6 {[%clk 0:00:06]} 39. dxe6+ {[%clk 0:00:09]}  Kxe6 {[%clk 0:00:00]} 40. f3 {[%clk 0:00:09]} 1-0


[Site "https://www.chess.com"]

[Event "Titled Tuesday Blitz August 15 Early 2023"]
[White "Benedetti, Julio"]
[Black "Gritsenko, Nikolai"]
[WhiteFideId "172545"]
[BlackFideId "14112493"]
[WhiteElo "2534"]
[BlackElo "2740"]
[Result "0-1"]
[Round "4"]
[TimeControl "180+1"]
[Date "2023.08.15"]
[WhiteClock "0:00:04"]
[BlackClock "0:00:12"]
[Board "64"]

1. e4 {[%clk 0:03:00]}  d5 {[%clk 0:02:59]} 2. Nc3 {[%clk 0:03:00]}  d4 {[%clk 0:02:57]} 3. Nce2 {[%clk 0:03:01]}  e5 {[%clk 0:02:58]} 4. Nf3 {[%clk 0:03:01]}  Bd6 {[%clk 0:02:50]} 5. Ng3 {[%clk 0:03:01]}  Ne7 {[%clk 0:02:45]} 6. Bc4 {[%clk 0:03:01]}  h6 {[%clk 0:02:20]} 7. d3 {[%clk 0:02:55]}  Be6 {[%clk 0:02:10]} 8. Bxe6 {[%clk 0:02:49]}  fxe6 {[%clk 0:02:11]} 9. Nh4 {[%clk 0:02:47]}  g5 {[%clk 0:02:04]} 10. Qh5+ {[%clk 0:02:46]}  Kd7 {[%clk 0:02:04]} 11. Nf3 {[%clk 0:02:13]}  Nbc6 {[%clk 0:01:26]} 12. a3 {[%clk 0:02:09]}  Qe8 {[%clk 0:01:23]} 13. Qg4 {[%clk 0:02:08]}  Qf7 {[%clk 0:01:15]} 14. h4 {[%clk 0:02:05]}  gxh4 {[%clk 0:01:05]} 15. Rxh4 {[%clk 0:01:55]}  Rag8 {[%clk 0:01:05]} 16. Qh3 {[%clk 0:01:55]}  Ng6 {[%clk 0:00:55]} 17. Rxh6 {[%clk 0:01:54]}  Rxh6 {[%clk 0:00:55]} 18. Qxh6 {[%clk 0:01:55]}  Rh8 {[%clk 0:00:53]} 19. Qg5 {[%clk 0:01:55]}  Nf4 {[%clk 0:00:47]} 20. Bxf4 {[%clk 0:01:32]}  exf4 {[%clk 0:00:44]} 21. Nf1 {[%clk 0:01:30]}  Rg8 {[%clk 0:00:42]} 22. Qb5 {[%clk 0:01:28]}  a6 {[%clk 0:00:36]} 23. Qxb7 {[%clk 0:01:26]}  Rxg2 {[%clk 0:00:33]} 24. Qxa6 {[%clk 0:00:58]}  Qh5 {[%clk 0:00:30]} 25. N3d2 {[%clk 0:00:52]}  Ne5 {[%clk 0:00:21]} 26. Qa4+ {[%clk 0:00:46]}  Ke7 {[%clk 0:00:19]} 27. Qxd4 {[%clk 0:00:46]}  Kf7 {[%clk 0:00:17]} 28. a4 {[%clk 0:00:43]}  Bc5 {[%clk 0:00:16]} 29. Qxc5 {[%clk 0:00:27]}  Nxd3+ {[%clk 0:00:15]} 30. cxd3 {[%clk 0:00:27]}  Qxc5 {[%clk 0:00:15]} 31. Ra3 {[%clk 0:00:09]}  Qxf2+ {[%clk 0:00:12]} 32. Kd1 {[%clk 0:00:10]}  Qe2+ {[%clk 0:00:12]} 33. Kc2 {[%clk 0:00:10]}  Qxf1 {[%clk 0:00:12]} 34. a5 {[%clk 0:00:04]}  Qe1 {[%clk 0:00:12]} 0-1


[Site "https://www.chess.com"]

[Event "Titled Tuesday Blitz August 15 Early 2023"]
[White "Ginzburg, Yakov"]
[Black "Brodowski, Piotr"]
[WhiteFideId "4157176"]
[BlackFideId "1124480"]
[WhiteElo "2531"]
[BlackElo "2738"]
[Result "0-1"]
[Round "4"]
[TimeControl "180+1"]
[Date "2023.08.15"]
[WhiteClock "0:00:00"]
[BlackClock "0:00:08"]
[Board "65"]

1. d4 {[%clk 0:03:00]}  d6 {[%clk 0:02:58]} 2. e4 {[%clk 0:02:58]}  g6 {[%clk 0:02:57]} 3. h4 {[%clk 0:02:57]}  h6 {[%clk 0:02:54]} 4. h5 {[%clk 0:02:57]}  g5 {[%clk 0:02:54]} 5. f4 {[%clk 0:02:56]}  gxf4 {[%clk 0:02:54]} 6. Bxf4 {[%clk 0:02:55]}  Bg7 {[%clk 0:02:53]} 7. c3 {[%clk 0:02:54]}  Nf6 {[%clk 0:02:46]} 8. Nd2 {[%clk 0:02:50]}  a6 {[%clk 0:02:45]} 9. a4 {[%clk 0:02:46]}  Bg4 {[%clk 0:02:11]} 10. Be2 {[%clk 0:02:45]}  Qd7 {[%clk 0:02:11]} 11. Bxg4 {[%clk 0:02:42]}  Qxg4 {[%clk 0:02:11]} 12. Qxg4 {[%clk 0:02:36]}  Nxg4 {[%clk 0:02:12]} 13. Ngf3 {[%clk 0:02:36]}  Nc6 {[%clk 0:02:11]} 14. Ke2 {[%clk 0:02:16]}  e6 {[%clk 0:02:10]} 15. Rh4 {[%clk 0:02:01]}  Nf6 {[%clk 0:02:07]} 16. g4 {[%clk 0:01:59]}  Kd7 {[%clk 0:02:07]} 17. Rg1 {[%clk 0:01:55]}  Rag8 {[%clk 0:02:06]} 18. g5 {[%clk 0:01:50]}  hxg5 {[%clk 0:02:06]} 19. Rxg5 {[%clk 0:01:47]}  Bh6 {[%clk 0:01:59]} 20. Rxg8 {[%clk 0:01:47]}  Nxg8 {[%clk 0:01:59]} 21. Nf1 {[%clk 0:01:14]}  Bxf4 {[%clk 0:01:54]} 22. Rxf4 {[%clk 0:01:15]}  Nh6 {[%clk 0:01:54]} 23. Ng3 {[%clk 0:01:13]}  Ke7 {[%clk 0:01:53]} 24. Nh2 {[%clk 0:01:02]}  Rg8 {[%clk 0:01:51]} 25. Kf3 {[%clk 0:01:01]}  Rh8 {[%clk 0:01:02]} 26. Ng4 {[%clk 0:00:55]}  e5 {[%clk 0:01:02]} 27. Nxh6 {[%clk 0:00:43]}  exf4 {[%clk 0:01:02]} 28. Ngf5+ {[%clk 0:00:39]}  Kf8 {[%clk 0:00:59]} 29. Kxf4 {[%clk 0:00:39]}  Ne7 {[%clk 0:00:59]} 30. Kg5 {[%clk 0:00:36]}  Nxf5 {[%clk 0:00:45]} 31. exf5 {[%clk 0:00:36]}  Kg7 {[%clk 0:00:38]} 32. f6+ {[%clk 0:00:35]}  Kf8 {[%clk 0:00:39]} 33. d5 {[%clk 0:00:33]}  c5 {[%clk 0:00:22]} 34. a5 {[%clk 0:00:28]}  c4 {[%clk 0:00:22]} 35. Nf5 {[%clk 0:00:24]}  Rg8+ {[%clk 0:00:22]} 36. Ng7 {[%clk 0:00:24]}  Rh8 {[%clk 0:00:23]} 37. h6 {[%clk 0:00:24]}  Rh7 {[%clk 0:00:22]} 38. Nf5 {[%clk 0:00:23]}  Rh8 {[%clk 0:00:23]} 39. Nxd6 {[%clk 0:00:20]}  Rg8+ {[%clk 0:00:23]} 40. Kf5 {[%clk 0:00:20]}  Rg2 {[%clk 0:00:23]} 41. Nxc4 {[%clk 0:00:20]}  Rh2 {[%clk 0:00:24]} 42. Nd6 {[%clk 0:00:19]}  Rxh6 {[%clk 0:00:18]} 43. Nxb7 {[%clk 0:00:19]}  Rh2 {[%clk 0:00:18]} 44. b4 {[%clk 0:00:19]}  Ke8 {[%clk 0:00:19]} 45. Nc5 {[%clk 0:00:17]}  Rc2 {[%clk 0:00:19]} 46. Nxa6 {[%clk 0:00:16]}  Rxc3 {[%clk 0:00:20]} 47. Ke5 {[%clk 0:00:16]}  Kd7 {[%clk 0:00:17]} 48. b5 {[%clk 0:00:16]}  Ra3 {[%clk 0:00:12]} 49. Nc5+ {[%clk 0:00:16]}  Kc8 {[%clk 0:00:12]} 50. a6 {[%clk 0:00:13]}  Ra5 {[%clk 0:00:12]} 51. Kd6 {[%clk 0:00:05]}  Rxb5 {[%clk 0:00:12]} 52. a7 {[%clk 0:00:06]}  Ra5 {[%clk 0:00:13]} 53. Nd3 {[%clk 0:00:02]}  Rxa7 {[%clk 0:00:11]} 54. Ne5 {[%clk 0:00:02]}  Rc7 {[%clk 0:00:07]} 55. Nc6 {[%clk 0:00:02]}  Rd7+ {[%clk 0:00:08]} 56. Ke5 {[%clk 0:00:02]}  Kc7 {[%clk 0:00:08]} 57. Nd4 {[%clk 0:00:01]}  Kd8 {[%clk 0:00:08]} 58. Nc6+ {[%clk 0:00:01]}  Ke8 {[%clk 0:00:07]} 59. d6 {[%clk 0:00:01]}  Rb7 {[%clk 0:00:07]} 60. Kd5 {[%clk 0:00:01]}  Rb5+ {[%clk 0:00:08]} 61. Kc4 {[%clk 0:00:00]}  Rf5 {[%clk 0:00:08]} 0-1


[Site "https://www.chess.com"]